[Event "Late-Titled-Tuesday-Blitz-September-05-2023"]
[Site "Chess.com"]
[Date "2023.09.05"]
[Round "5"]
[White "Nick12772"]
[Black "TheMagician"]
[Result "1/2-1/2"]
[WhiteElo "2336"]
[BlackElo "2083"]
[TimeControl "180+1"]
[EndTime "14:56:30 PDT"]
[Termination "Game drawn by repetition"]

1. Nf3 {[%clk 0:03:00.9]} 1... d5 {[%clk 0:02:58.3]} 2. g3 {[%clk 0:03:01.3]}
2... c6 {[%clk 0:02:58.8]} 3. Bg2 {[%clk 0:03:01.8]} 3... Bf5 {[%clk 0:02:59.4]}
4. O-O {[%clk 0:03:02.4]} 4... h6 {[%clk 0:02:59.5]} 5. d4 {[%clk 0:03:03]} 5...
Nf6 {[%clk 0:02:59.4]} 6. b3 {[%clk 0:02:59.6]} 6... e6 {[%clk 0:02:59.5]} 7.
Bb2 {[%clk 0:03:00.3]} 7... Nbd7 {[%clk 0:02:59.1]} 8. Nbd2 {[%clk 0:03:01]}
8... Bd6 {[%clk 0:02:57.2]} 9. e3 {[%clk 0:03:00.8]} 9... Qe7 {[%clk 0:02:57.4]}
10. Re1 {[%clk 0:03:00.9]} 10... O-O {[%clk 0:02:52.1]} 11. a3 {[%clk
0:03:00.4]} 11... Bh7 {[%clk 0:02:51.6]} 12. b4 {[%clk 0:03:00.7]} 12... e5
{[%clk 0:02:47.1]} 13. dxe5 {[%clk 0:03:00]} 13... Nxe5 {[%clk 0:02:47.3]} 14.
Nxe5 {[%clk 0:03:00.1]} 14... Bxe5 {[%clk 0:02:47.5]} 15. Bxe5 {[%clk
0:02:59.7]} 15... Qxe5 {[%clk 0:02:47.8]} 16. c4 {[%clk 0:02:53.9]} 16... Rad8
{[%clk 0:02:32]} 17. Nf3 {[%clk 0:02:48]} 17... Qb2 {[%clk 0:02:28.1]} 18. c5
{[%clk 0:02:45.3]} 18... Ne4 {[%clk 0:02:18]} 19. Qc1 {[%clk 0:02:41.1]} 19...
Qf6 {[%clk 0:02:10.4]} 20. Rf1 {[%clk 0:02:28.1]} 20... Bf5 {[%clk 0:02:08.9]}
21. Ra2 {[%clk 0:02:14.2]} 21... Ng5 {[%clk 0:01:50.8]} 22. Nxg5 {[%clk
0:02:08.7]} 22... hxg5 {[%clk 0:01:50.8]} 23. Qb2 {[%clk 0:02:03.9]} 23... Qxb2
{[%clk 0:01:49.8]} 24. Rxb2 {[%clk 0:02:04.8]} 24... g4 {[%clk 0:01:50]} 25. b5
{[%clk 0:01:56.9]} 25... Rc8 {[%clk 0:01:34.2]} 26. b6 {[%clk 0:01:37.7]} 26...
a6 {[%clk 0:01:30.8]} 27. Rd2 {[%clk 0:01:27.3]} 27... Rfe8 {[%clk 0:01:27.9]}
28. Rd4 {[%clk 0:01:27.5]} 28... Re5 {[%clk 0:01:27.8]} 29. Rfd1 {[%clk
0:01:24.4]} 29... Rce8 {[%clk 0:01:27]} 30. a4 {[%clk 0:01:20.9]} 30... Be4
{[%clk 0:01:24.7]} 31. Bf1 {[%clk 0:01:10.6]} 31... Bf3 {[%clk 0:01:23.9]} 32.
R1d2 {[%clk 0:01:11]} 32... f5 {[%clk 0:01:17.3]} 33. a5 {[%clk 0:01:08.4]}
33... Re4 {[%clk 0:01:15.9]} 34. Rxe4 {[%clk 0:00:58.9]} 34... fxe4 {[%clk
0:01:11.3]} 35. h4 {[%clk 0:00:50.3]} 35... Kf7 {[%clk 0:01:10]} 36. Bg2 {[%clk
0:00:44.4]} 36... Rh8 {[%clk 0:01:05.2]} 37. Rd4 {[%clk 0:00:41.5]} 37... g5
{[%clk 0:01:04.1]} 38. hxg5 {[%clk 0:00:38.8]} 38... Kg6 {[%clk 0:01:04.3]} 39.
Rd2 {[%clk 0:00:26.8]} 39... Kxg5 {[%clk 0:01:04.3]} 40. Rd4 {[%clk 0:00:27.4]}
40... Kf5 {[%clk 0:01:03.8]} 41. Rd2 {[%clk 0:00:27.3]} 41... Ke5 {[%clk
0:01:03.5]} 42. Rd4 {[%clk 0:00:27.9]} 42... Rd8 {[%clk 0:01:03.1]} 43. Kh2
{[%clk 0:00:25.5]} 43... Rh8+ {[%clk 0:00:53.6]} 44. Kg1 {[%clk 0:00:25.6]}
44... Rd8 {[%clk 0:00:51.6]} 45. Kh2 {[%clk 0:00:25.7]} 45... Re8 {[%clk
0:00:51.5]} 46. Kg1 {[%clk 0:00:25.8]} 46... Re7 {[%clk 0:00:52.1]} 47. Kh2
{[%clk 0:00:25.9]} 47... Rh7+ {[%clk 0:00:52]} 48. Kg1 {[%clk 0:00:26.4]} 48...
Bxg2 {[%clk 0:00:38.2]} 49. Kxg2 {[%clk 0:00:26.6]} 49... Rh8 {[%clk 0:00:38.3]}
50. Kg1 {[%clk 0:00:26.9]} 50... Rh7 {[%clk 0:00:35.1]} 51. Kg2 {[%clk
0:00:27.5]} 51... Rh3 {[%clk 0:00:35.1]} 52. Kg1 {[%clk 0:00:26.4]} 52... Rh7
{[%clk 0:00:34.7]} 53. Kg2 {[%clk 0:00:27]} 1/2-1/2

[Event "Late-Titled-Tuesday-Blitz-September-05-2023"]
[Site "Chess.com"]
[Date "2023.09.05"]
[Round "5"]
[White "rasmussvane"]
[Black "Marcin"]
[Result "1-0"]
[WhiteElo "2938"]
[BlackElo "2482"]
[TimeControl "180+1"]
[EndTime "14:56:35 PDT"]
[Termination "rasmussvane won on time"]

1. Nf3 {[%clk 0:02:59.2]} 1... Nf6 {[%clk 0:02:58.8]} 2. g3 {[%clk 0:02:59.3]}
2... d5 {[%clk 0:02:57.8]} 3. Bg2 {[%clk 0:02:59.4]} 3... g6 {[%clk 0:02:57.4]}
4. O-O {[%clk 0:02:59.3]} 4... Bg7 {[%clk 0:02:57]} 5. d4 {[%clk 0:02:59]} 5...
O-O {[%clk 0:02:54.6]} 6. c4 {[%clk 0:02:51.6]} 6... c6 {[%clk 0:02:51.2]} 7.
Qb3 {[%clk 0:02:22.7]} 7... dxc4 {[%clk 0:02:41]} 8. Qxc4 {[%clk 0:02:22.7]}
8... Be6 {[%clk 0:02:38.6]} 9. Qa4 {[%clk 0:02:21.9]} 9... Nbd7 {[%clk
0:02:34.7]} 10. Nc3 {[%clk 0:02:21.8]} 10... Nb6 {[%clk 0:02:17.4]} 11. Qc2
{[%clk 0:02:21.6]} 11... Rc8 {[%clk 0:02:08.7]} 12. e4 {[%clk 0:02:21.1]} 12...
Bg4 {[%clk 0:01:57.4]} 13. Rd1 {[%clk 0:02:19.1]} 13... Nfd7 {[%clk 0:01:44.8]}
14. h3 {[%clk 0:02:17.4]} 14... Bxf3 {[%clk 0:01:40.5]} 15. Bxf3 {[%clk
0:02:18.3]} 15... e5 {[%clk 0:01:31.4]} 16. dxe5 {[%clk 0:02:19.2]} 16... Qe7
{[%clk 0:01:26.4]} 17. Bg4 {[%clk 0:02:15.9]} 17... Bxe5 {[%clk 0:01:18.9]} 18.
f4 {[%clk 0:02:10.2]} 18... Bg7 {[%clk 0:01:17.6]} 19. e5 {[%clk 0:02:07.8]}
19... Rcd8 {[%clk 0:01:15.1]} 20. Ne4 {[%clk 0:02:05.1]} 20... h5 {[%clk
0:01:12.6]} 21. Bf3 {[%clk 0:02:02.6]} 21... Nd5 {[%clk 0:01:09.8]} 22. Qf2
{[%clk 0:01:43.6]} 22... h4 {[%clk 0:00:56.8]} 23. gxh4 {[%clk 0:01:36.6]} 23...
b6 {[%clk 0:00:52.8]} 24. Bd2 {[%clk 0:01:28.1]} 24... f6 {[%clk 0:00:46.2]} 25.
exf6 {[%clk 0:01:23.9]} 25... N7xf6 {[%clk 0:00:44.3]} 26. Ng5 {[%clk
0:01:24.3]} 26... Nh5 {[%clk 0:00:36.7]} 27. Re1 {[%clk 0:01:16.2]} 27... Qf6
{[%clk 0:00:20.4]} 28. Bxh5 {[%clk 0:00:57.7]} 28... gxh5 {[%clk 0:00:21.3]} 29.
Ne6 {[%clk 0:00:57.1]} 29... Qxb2 {[%clk 0:00:16.5]} 30. Rab1 {[%clk 0:00:54.2]}
30... Qf6 {[%clk 0:00:13.7]} 31. Nxd8 {[%clk 0:00:52.6]} 31... Qxd8 {[%clk
0:00:11.4]} 32. Rb3 {[%clk 0:00:50.2]} 32... c5 {[%clk 0:00:11]} 33. Kh2 {[%clk
0:00:49.1]} 33... Qc7 {[%clk 0:00:08.7]} 34. Rg3 {[%clk 0:00:45.6]} 34... Nxf4
{[%clk 0:00:07.4]} 35. Reg1 {[%clk 0:00:35.9]} 35... Ne6 {[%clk 0:00:05.9]} 36.
Qe2 {[%clk 0:00:35.4]} 36... Qd6 {[%clk 0:00:03.7]} 37. Bc3 {[%clk 0:00:32.7]}
37... b5 {[%clk 0:00:03]} 38. Be5 {[%clk 0:00:21.9]} 1-0

[Event "Late-Titled-Tuesday-Blitz-September-05-2023"]
[Site "Chess.com"]
[Date "2023.09.05"]
[Round "5"]
[White "CFalcons8"]
[Black "DawidCzerw"]
[Result "0-1"]
[WhiteElo "2312"]
[BlackElo "2495"]
[TimeControl "180+1"]
[EndTime "14:56:36 PDT"]
[Termination "DawidCzerw won on time"]

1. e4 {[%clk 0:03:00.9]} 1... c5 {[%clk 0:03:00.4]} 2. Nf3 {[%clk 0:03:00.2]}
2... Nc6 {[%clk 0:03:01]} 3. d4 {[%clk 0:02:59.7]} 3... cxd4 {[%clk 0:03:01.9]}
4. Nxd4 {[%clk 0:03:00.1]} 4... Nf6 {[%clk 0:03:02.6]} 5. Nc3 {[%clk 0:02:59.5]}
5... e5 {[%clk 0:03:02.7]} 6. Ndb5 {[%clk 0:02:59.7]} 6... d6 {[%clk 0:03:03.3]}
7. Bg5 {[%clk 0:02:59.2]} 7... a6 {[%clk 0:03:03.4]} 8. Na3 {[%clk 0:02:57.9]}
8... b5 {[%clk 0:03:02.7]} 9. Nd5 {[%clk 0:02:57.5]} 9... Be7 {[%clk 0:03:02.3]}
10. Bxf6 {[%clk 0:02:57.8]} 10... Bxf6 {[%clk 0:03:03.2]} 11. c4 {[%clk
0:02:57.5]} 11... b4 {[%clk 0:03:02.3]} 12. Nc2 {[%clk 0:02:57.6]} 12... a5
{[%clk 0:03:02.2]} 13. g3 {[%clk 0:02:56.2]} 13... O-O {[%clk 0:03:01]} 14. Bg2
{[%clk 0:02:56.2]} 14... Be6 {[%clk 0:02:51.6]} 15. O-O {[%clk 0:02:55.4]} 15...
Bg5 {[%clk 0:02:51.2]} 16. f4 {[%clk 0:02:53.9]} 16... exf4 {[%clk 0:02:48.6]}
17. gxf4 {[%clk 0:02:54.8]} 17... Bh6 {[%clk 0:02:48.1]} 18. Qd3 {[%clk
0:02:50.9]} 18... Qd7 {[%clk 0:02:35.1]} 19. Kh1 {[%clk 0:02:45.9]} 19... Qa7
{[%clk 0:02:32.7]} 20. Qg3 {[%clk 0:02:40.8]} 20... f5 {[%clk 0:02:22.6]} 21.
exf5 {[%clk 0:02:36.4]} 21... Bxf5 {[%clk 0:02:22]} 22. Nce3 {[%clk 0:02:25.9]}
22... Nd4 {[%clk 0:02:19.7]} 23. Rad1 {[%clk 0:02:19.4]} 23... Rae8 {[%clk
0:02:16.4]} 24. Qf2 {[%clk 0:01:45.2]} 24... Qc5 {[%clk 0:02:06.4]} 25. Rxd4
{[%clk 0:01:18.1]} 25... Qxd4 {[%clk 0:02:03.5]} 26. Nxf5 {[%clk 0:01:18.1]}
26... Qxf2 {[%clk 0:01:56.7]} 27. Nxh6+ {[%clk 0:01:17.7]} 27... gxh6 {[%clk
0:01:57.6]} 28. Rxf2 {[%clk 0:01:17.5]} 28... Re1+ {[%clk 0:01:54.6]} 29. Rf1
{[%clk 0:01:08.2]} 29... Re2 {[%clk 0:01:50.6]} 30. Bh3 {[%clk 0:01:07.4]} 30...
Rxb2 {[%clk 0:01:42.5]} 31. Be6+ {[%clk 0:01:06.3]} 31... Kh8 {[%clk 0:01:42.3]}
32. f5 {[%clk 0:00:47.2]} 32... Rxa2 {[%clk 0:01:41.8]} 33. f6 {[%clk
0:00:38.6]} 33... b3 {[%clk 0:01:36.8]} 34. f7 {[%clk 0:00:35.6]} 34... b2
{[%clk 0:01:36.6]} 35. Nc3 {[%clk 0:00:33.4]} 35... Ra1 {[%clk 0:01:36.8]} 36.
Nb1 {[%clk 0:00:27.7]} 36... Kg7 {[%clk 0:00:57.2]} 37. Rg1+ {[%clk 0:00:18.3]}
37... Kf6 {[%clk 0:00:56.7]} 38. Bd5 {[%clk 0:00:17.3]} 38... a4 {[%clk
0:00:50.1]} 39. Rf1+ {[%clk 0:00:09.5]} 39... Ke7 {[%clk 0:00:46.7]} 40. Re1+
{[%clk 0:00:08.9]} 40... Kd7 {[%clk 0:00:44.5]} 41. Be6+ {[%clk 0:00:03.1]}
41... Kc7 {[%clk 0:00:38.8]} 42. Kg2 {[%clk 0:00:01.4]} 42... a3 {[%clk
0:00:37.7]} 43. c5 {[%clk 0:00:01.5]} 43... dxc5 {[%clk 0:00:30.5]} 0-1

[Event "Late-Titled-Tuesday-Blitz-September-05-2023"]
[Site "Chess.com"]
[Date "2023.09.05"]
[Round "5"]
[White "jcmesafischer"]
[Black "NowInChess"]
[Result "1-0"]
[WhiteElo "2434"]
[BlackElo "2275"]
[TimeControl "180+1"]
[EndTime "14:56:37 PDT"]
[Termination "jcmesafischer won by checkmate"]

1. Nf3 {[%clk 0:02:00.3]} 1... Nf6 {[%clk 0:02:58.4]} 2. c4 {[%clk 0:01:59.5]}
2... g6 {[%clk 0:02:58.4]} 3. d4 {[%clk 0:01:58.3]} 3... Bg7 {[%clk 0:02:58.6]}
4. Nc3 {[%clk 0:01:58.9]} 4... O-O {[%clk 0:02:58.7]} 5. e4 {[%clk 0:01:59.4]}
5... d6 {[%clk 0:02:59.1]} 6. Be2 {[%clk 0:01:59.8]} 6... Na6 {[%clk 0:02:58.4]}
7. Be3 {[%clk 0:01:50]} 7... Ng4 {[%clk 0:02:55.6]} 8. Bg5 {[%clk 0:01:49.1]}
8... h6 {[%clk 0:02:54.9]} 9. Bh4 {[%clk 0:01:41.7]} 9... c5 {[%clk 0:02:42]}
10. d5 {[%clk 0:01:18.3]} 10... Nc7 {[%clk 0:02:17.7]} 11. Qd2 {[%clk
0:01:06.8]} 11... b5 {[%clk 0:02:07.8]} 12. cxb5 {[%clk 0:01:03.2]} 12... a6
{[%clk 0:02:03.3]} 13. h3 {[%clk 0:00:58.7]} 13... Nf6 {[%clk 0:01:52.2]} 14.
bxa6 {[%clk 0:00:38.5]} 14... Bxa6 {[%clk 0:01:51.7]} 15. O-O {[%clk 0:00:36.8]}
15... g5 {[%clk 0:01:33]} 16. Bg3 {[%clk 0:00:29.7]} 16... Nd7 {[%clk
0:01:30.3]} 17. h4 {[%clk 0:00:25.7]} 17... g4 {[%clk 0:01:02.7]} 18. Nh2 {[%clk
0:00:23.2]} 18... h5 {[%clk 0:00:59.7]} 19. f3 {[%clk 0:00:20.7]} 19... gxf3
{[%clk 0:00:24.1]} 20. Nxf3 {[%clk 0:00:21.6]} 20... Nf6 {[%clk 0:00:18.8]} 21.
Rad1 {[%clk 0:00:19.6]} 21... Ng4 {[%clk 0:00:15.3]} 22. Bf4 {[%clk 0:00:12.8]}
22... Kh7 {[%clk 0:00:12]} 23. Ng5+ {[%clk 0:00:12.3]} 23... Kg8 {[%clk
0:00:11.6]} 24. Bxg4 {[%clk 0:00:12.3]} 24... hxg4 {[%clk 0:00:12.1]} 25. Rf2
{[%clk 0:00:10.6]} 25... Nb5 {[%clk 0:00:11.6]} 26. Nxb5 {[%clk 0:00:09.8]}
26... Bxb5 {[%clk 0:00:11.1]} 27. Qc2 {[%clk 0:00:08.7]} 27... Ba4 {[%clk
0:00:06.4]} 28. b3 {[%clk 0:00:09.1]} 28... Bd7 {[%clk 0:00:06.7]} 29. e5 {[%clk
0:00:09.5]} 29... f5 {[%clk 0:00:06.6]} 30. exf6 {[%clk 0:00:08.7]} 30... Rxf6
{[%clk 0:00:06.6]} 31. Qh7+ {[%clk 0:00:09.1]} 31... Kf8 {[%clk 0:00:06.7]} 32.
Be3 {[%clk 0:00:09.3]} 32... Rxf2 {[%clk 0:00:05.6]} 33. Bxf2 {[%clk 0:00:09.9]}
33... Qe8 {[%clk 0:00:05.7]} 34. Rf1 {[%clk 0:00:09.8]} 34... Bf6 {[%clk
0:00:03.1]} 35. Be3 {[%clk 0:00:09.8]} 35... Qd8 {[%clk 0:00:01.2]} 36. Qh8#
{[%clk 0:00:09.4]} 1-0

[Event "Late-Titled-Tuesday-Blitz-September-05-2023"]
[Site "Chess.com"]
[Date "2023.09.05"]
[Round "5"]
[White "traack"]
[Black "IlanSchnaider"]
[Result "0-1"]
[WhiteElo "2368"]
[BlackElo "2743"]
[TimeControl "180+1"]
[EndTime "14:56:43 PDT"]
[Termination "IlanSchnaider won by checkmate"]

1. e4 {[%clk 0:03:00.9]} 1... e5 {[%clk 0:02:58.8]} 2. Nf3 {[%clk 0:03:00.7]}
2... Nc6 {[%clk 0:02:58.2]} 3. Nc3 {[%clk 0:03:01.1]} 3... Nf6 {[%clk
0:02:57.9]} 4. a3 {[%clk 0:02:59.9]} 4... Bc5 {[%clk 0:02:45.5]} 5. Nxe5 {[%clk
0:02:59.4]} 5... Nxe5 {[%clk 0:02:41.8]} 6. d4 {[%clk 0:02:59.7]} 6... Bxd4
{[%clk 0:02:41.6]} 7. Qxd4 {[%clk 0:02:57.3]} 7... Nc6 {[%clk 0:02:42.5]} 8. Qd3
{[%clk 0:02:51.1]} 8... O-O {[%clk 0:02:39.3]} 9. Bg5 {[%clk 0:02:50.4]} 9... h6
{[%clk 0:02:28.8]} 10. Bh4 {[%clk 0:02:45.9]} 10... Ne5 {[%clk 0:02:22.4]} 11.
Qd2 {[%clk 0:02:37.6]} 11... Ng6 {[%clk 0:02:21.4]} 12. Bg3 {[%clk 0:02:35.9]}
12... d6 {[%clk 0:02:19.1]} 13. O-O-O {[%clk 0:02:34.6]} 13... Re8 {[%clk
0:02:17.4]} 14. Bd3 {[%clk 0:02:33]} 14... Be6 {[%clk 0:02:10.9]} 15. f4 {[%clk
0:02:31.8]} 15... Bg4 {[%clk 0:01:56.2]} 16. Rde1 {[%clk 0:02:30.9]} 16... c6
{[%clk 0:01:52.9]} 17. f5 {[%clk 0:02:09.8]} 17... Nf8 {[%clk 0:01:37.7]} 18. h3
{[%clk 0:02:09.5]} 18... Bh5 {[%clk 0:01:36.8]} 19. Bh4 {[%clk 0:01:57.9]} 19...
g5 {[%clk 0:01:27]} 20. fxg6 {[%clk 0:01:41.6]} 20... Bxg6 {[%clk 0:01:08.9]}
21. Qxh6 {[%clk 0:01:40.3]} 21... Re5 {[%clk 0:00:59.6]} 22. g4 {[%clk
0:01:36.8]} 22... N8d7 {[%clk 0:00:41.4]} 23. Bg3 {[%clk 0:01:33.7]} 23... Re6
{[%clk 0:00:27.3]} 24. Bc4 {[%clk 0:01:32.8]} 24... d5 {[%clk 0:00:24.1]} 25.
exd5 {[%clk 0:01:32.6]} 25... cxd5 {[%clk 0:00:21]} 26. Nxd5 {[%clk 0:01:28.8]}
26... Rxe1+ {[%clk 0:00:18.9]} 27. Rxe1 {[%clk 0:01:27.7]} 27... Nxd5 {[%clk
0:00:19.5]} 28. Bxd5 {[%clk 0:01:27.6]} 28... Qf6 {[%clk 0:00:18.1]} 29. Bh4
{[%clk 0:01:05.7]} 29... Qd6 {[%clk 0:00:14.9]} 30. Rd1 {[%clk 0:00:53.5]} 30...
Qb6 {[%clk 0:00:04]} 31. Qg5 {[%clk 0:00:20.6]} 31... Rc8 {[%clk 0:00:02.8]} 32.
c3 {[%clk 0:00:12.9]} 32... Rf8 {[%clk 0:00:01.6]} 33. Qf4 {[%clk 0:00:10.4]}
33... Nc5 {[%clk 0:00:02.1]} 34. Bc4 {[%clk 0:00:09.5]} 34... Nb3+ {[%clk
0:00:02.2]} 35. Bxb3 {[%clk 0:00:09.4]} 35... Qxb3 {[%clk 0:00:03.1]} 36. Bf6
{[%clk 0:00:09.1]} 36... Qc2# {[%clk 0:00:03.6]} 0-1

[Event "Late-Titled-Tuesday-Blitz-September-05-2023"]
[Site "Chess.com"]
[Date "2023.09.05"]
[Round "5"]
[White "TheRigos"]
[Black "AradNazari"]
[Result "1-0"]
[WhiteElo "2554"]
[BlackElo "2703"]
[TimeControl "180+1"]
[EndTime "14:56:44 PDT"]
[Termination "TheRigos won on time"]

1. Nf3 {[%clk 0:03:00.9]} 1... c5 {[%clk 0:02:53.6]} 2. c4 {[%clk 0:02:57.9]}
2... Nc6 {[%clk 0:02:53.5]} 3. Nc3 {[%clk 0:02:57.2]} 3... g6 {[%clk 0:02:52.5]}
4. e3 {[%clk 0:02:57.4]} 4... Nf6 {[%clk 0:02:51]} 5. d4 {[%clk 0:02:56.9]} 5...
cxd4 {[%clk 0:02:51.8]} 6. exd4 {[%clk 0:02:57.8]} 6... d5 {[%clk 0:02:52.5]} 7.
cxd5 {[%clk 0:02:57.7]} 7... Nxd5 {[%clk 0:02:53.4]} 8. Bc4 {[%clk 0:02:58.3]}
8... Nxc3 {[%clk 0:02:53.4]} 9. bxc3 {[%clk 0:02:45.9]} 9... Bg7 {[%clk
0:02:53.1]} 10. O-O {[%clk 0:02:44.6]} 10... O-O {[%clk 0:02:53.8]} 11. Re1
{[%clk 0:02:43.3]} 11... Qc7 {[%clk 0:02:44.3]} 12. Bb3 {[%clk 0:02:35.9]} 12...
Bg4 {[%clk 0:02:26.9]} 13. Ba3 {[%clk 0:02:34.9]} 13... Bf6 {[%clk 0:02:16.6]}
14. h3 {[%clk 0:02:32.8]} 14... Bxf3 {[%clk 0:02:07.5]} 15. Qxf3 {[%clk
0:02:32.5]} 15... Na5 {[%clk 0:02:06.6]} 16. Bd5 {[%clk 0:01:43]} 16... Rac8
{[%clk 0:01:52.1]} 17. Rab1 {[%clk 0:01:36.9]} 17... b6 {[%clk 0:01:49.1]} 18.
Bb4 {[%clk 0:01:09.9]} 18... Rfd8 {[%clk 0:01:33.8]} 19. Bxe7 {[%clk 0:01:09.7]}
19... Rxd5 {[%clk 0:01:24.5]} 20. Qxf6 {[%clk 0:01:04.2]} 20... Rf5 {[%clk
0:01:02.7]} 21. Qh4 {[%clk 0:00:58]} 21... Qxc3 {[%clk 0:00:59.4]} 22. Bf6
{[%clk 0:00:47.6]} 22... Qd2 {[%clk 0:00:40.8]} 23. Re4 {[%clk 0:00:26.2]} 23...
Nb7 {[%clk 0:00:15]} 24. Rbe1 {[%clk 0:00:22]} 24... Nd6 {[%clk 0:00:15.5]} 25.
R4e2 {[%clk 0:00:15.9]} 25... Qd3 {[%clk 0:00:06.8]} 26. Be5 {[%clk 0:00:14.9]}
26... Ne8 {[%clk 0:00:04.4]} 27. Qh6 {[%clk 0:00:10.3]} 27... f6 {[%clk
0:00:03]} 28. Bg3 {[%clk 0:00:08.1]} 28... Qb5 {[%clk 0:00:03.3]} 29. Re7 {[%clk
0:00:07.7]} 29... Rh5 {[%clk 0:00:03.4]} 30. Qe3 {[%clk 0:00:05.5]} 30... Ng7
{[%clk 0:00:03]} 31. Qe4 {[%clk 0:00:03.3]} 31... Qf5 {[%clk 0:00:02.9]} 32. Qe3
{[%clk 0:00:03.4]} 32... Qd5 {[%clk 0:00:02.8]} 33. Rxa7 {[%clk 0:00:03.4]}
33... Nf5 {[%clk 0:00:02.8]} 34. Qe8+ {[%clk 0:00:02.8]} 1-0

[Event "Late-Titled-Tuesday-Blitz-September-05-2023"]
[Site "Chess.com"]
[Date "2023.09.05"]
[Round "5"]
[White "sergiochess83"]
[Black "DefiantChair"]
[Result "0-1"]
[WhiteElo "2911"]
[BlackElo "2664"]
[TimeControl "180+1"]
[EndTime "14:56:46 PDT"]
[Termination "DefiantChair won on time"]

1. d4 {[%clk 0:03:00.9]} 1... Nf6 {[%clk 0:02:59.7]} 2. c4 {[%clk 0:02:58.6]}
2... e6 {[%clk 0:03:00]} 3. g3 {[%clk 0:02:58]} 3... d5 {[%clk 0:03:00]} 4. Bg2
{[%clk 0:02:55.6]} 4... dxc4 {[%clk 0:02:59.9]} 5. Nf3 {[%clk 0:02:51.2]} 5...
a6 {[%clk 0:02:59.2]} 6. O-O {[%clk 0:02:48.9]} 6... Nc6 {[%clk 0:02:59.8]} 7.
Bg5 {[%clk 0:02:41.8]} 7... h6 {[%clk 0:02:58.9]} 8. Bxf6 {[%clk 0:02:39.7]}
8... Qxf6 {[%clk 0:02:59.8]} 9. e3 {[%clk 0:02:32.2]} 9... Rb8 {[%clk
0:03:00.1]} 10. Nfd2 {[%clk 0:02:24.2]} 10... e5 {[%clk 0:02:56.8]} 11. d5
{[%clk 0:02:21.9]} 11... Nd8 {[%clk 0:02:10.6]} 12. Nxc4 {[%clk 0:02:20.2]}
12... b5 {[%clk 0:02:10.5]} 13. Ncd2 {[%clk 0:02:08.4]} 13... Bd6 {[%clk
0:02:07.3]} 14. Nc3 {[%clk 0:02:05.2]} 14... O-O {[%clk 0:02:06.8]} 15. a4
{[%clk 0:01:45.5]} 15... Bd7 {[%clk 0:01:46.5]} 16. axb5 {[%clk 0:01:42.2]}
16... axb5 {[%clk 0:01:47.4]} 17. Nce4 {[%clk 0:01:26.2]} 17... Qg6 {[%clk
0:01:47.5]} 18. Ra6 {[%clk 0:01:17.6]} 18... f5 {[%clk 0:01:10]} 19. Nxd6 {[%clk
0:01:09.3]} 19... cxd6 {[%clk 0:01:08.7]} 20. Nb3 {[%clk 0:00:57.7]} 20... f4
{[%clk 0:00:46.3]} 21. exf4 {[%clk 0:00:54.5]} 21... exf4 {[%clk 0:00:46]} 22.
Nd4 {[%clk 0:00:45.9]} 22... Bg4 {[%clk 0:00:45.2]} 23. Qb1 {[%clk 0:00:21.5]}
23... Qf6 {[%clk 0:00:34]} 24. Qe4 {[%clk 0:00:21.1]} 24... Nb7 {[%clk
0:00:26.6]} 25. Qxf4 {[%clk 0:00:17.7]} 25... Qxf4 {[%clk 0:00:21.2]} 26. gxf4
{[%clk 0:00:18.6]} 26... Rxf4 {[%clk 0:00:21.9]} 27. Ne6 {[%clk 0:00:17]} 27...
Rb4 {[%clk 0:00:20.1]} 28. Rb6 {[%clk 0:00:16.8]} 28... Rxb2 {[%clk 0:00:17.2]}
29. Rc1 {[%clk 0:00:15]} 29... Be2 {[%clk 0:00:11.5]} 30. Nd4 {[%clk 0:00:11]}
30... Bc4 {[%clk 0:00:10.4]} 31. Nc6 {[%clk 0:00:04.7]} 31... Rf8 {[%clk
0:00:10.4]} 32. Rxb7 {[%clk 0:00:03.9]} 32... Rfxf2 {[%clk 0:00:10.6]} 33. Be4
{[%clk 0:00:02.6]} 33... Rbe2 {[%clk 0:00:08.6]} 0-1

[Event "Late-Titled-Tuesday-Blitz-September-05-2023"]
[Site "Chess.com"]
[Date "2023.09.05"]
[Round "5"]
[White "adiosabu"]
[Black "Gogolev_Artemy"]
[Result "0-1"]
[WhiteElo "2549"]
[BlackElo "2440"]
[TimeControl "180+1"]
[EndTime "14:56:46 PDT"]
[Termination "Gogolev_Artemy won by resignation"]

1. d4 {[%clk 0:03:00.9]} 1... d5 {[%clk 0:03:00]} 2. Nf3 {[%clk 0:03:00.9]} 2...
Nf6 {[%clk 0:02:59.1]} 3. Bf4 {[%clk 0:03:00.5]} 3... e6 {[%clk 0:02:59.4]} 4.
e3 {[%clk 0:03:00.5]} 4... Bd6 {[%clk 0:03:00]} 5. Bg3 {[%clk 0:03:00.3]} 5...
O-O {[%clk 0:03:00.1]} 6. Nbd2 {[%clk 0:03:00]} 6... b6 {[%clk 0:03:00.5]} 7.
Bd3 {[%clk 0:02:47.1]} 7... Bb7 {[%clk 0:03:00.4]} 8. O-O {[%clk 0:02:46.3]}
8... Ne4 {[%clk 0:03:00.9]} 9. Bxe4 {[%clk 0:02:37.6]} 9... dxe4 {[%clk
0:03:00]} 10. Ne5 {[%clk 0:02:38.5]} 10... f6 {[%clk 0:02:41.7]} 11. Nec4 {[%clk
0:02:35.5]} 11... Bxg3 {[%clk 0:02:39]} 12. fxg3 {[%clk 0:02:33.2]} 12... f5
{[%clk 0:02:37.5]} 13. g4 {[%clk 0:02:25.6]} 13... Nd7 {[%clk 0:02:20.9]} 14.
gxf5 {[%clk 0:02:21.2]} 14... exf5 {[%clk 0:02:21.8]} 15. Qh5 {[%clk 0:02:17.8]}
15... g6 {[%clk 0:02:21.4]} 16. Qh6 {[%clk 0:02:16.7]} 16... Qe7 {[%clk
0:02:20.8]} 17. a4 {[%clk 0:02:07.4]} 17... Rad8 {[%clk 0:02:03]} 18. Rf2 {[%clk
0:01:56.6]} 18... c5 {[%clk 0:01:13.8]} 19. c3 {[%clk 0:01:55.5]} 19... cxd4
{[%clk 0:01:12.6]} 20. cxd4 {[%clk 0:01:55.2]} 20... Rc8 {[%clk 0:01:13.1]} 21.
b3 {[%clk 0:01:49.2]} 21... a6 {[%clk 0:01:05.4]} 22. Qf4 {[%clk 0:01:46.5]}
22... Bd5 {[%clk 0:01:00.3]} 23. h3 {[%clk 0:01:39.6]} 23... Rc6 {[%clk
0:00:57.8]} 24. Raf1 {[%clk 0:01:17.6]} 24... b5 {[%clk 0:00:55]} 25. Nb2 {[%clk
0:00:53.3]} 25... Qe6 {[%clk 0:00:38.1]} 26. axb5 {[%clk 0:00:49.6]} 26... axb5
{[%clk 0:00:38.7]} 27. g4 {[%clk 0:00:46.2]} 27... Rcc8 {[%clk 0:00:32.7]} 28.
gxf5 {[%clk 0:00:42.3]} 28... Rxf5 {[%clk 0:00:33.6]} 29. Qg4 {[%clk 0:00:40.6]}
29... Rxf2 {[%clk 0:00:23.7]} 30. Rxf2 {[%clk 0:00:40.4]} 30... Qxg4+ {[%clk
0:00:22]} 31. hxg4 {[%clk 0:00:40.4]} 31... Rc2 {[%clk 0:00:19]} 32. Nxe4 {[%clk
0:00:30.8]} 32... Bxe4 {[%clk 0:00:17.4]} 33. Rf4 {[%clk 0:00:20.3]} 33... Rxb2
{[%clk 0:00:14.9]} 34. Rxe4 {[%clk 0:00:20.1]} 34... Rxb3 {[%clk 0:00:13.8]} 35.
Re6 {[%clk 0:00:18.3]} 35... Kf7 {[%clk 0:00:12.8]} 36. d5 {[%clk 0:00:16.4]}
36... Rd3 {[%clk 0:00:10.7]} 37. e4 {[%clk 0:00:16.4]} 37... Nc5 {[%clk
0:00:08.4]} 38. Re5 {[%clk 0:00:14.8]} 38... b4 {[%clk 0:00:07.8]} 39. d6 {[%clk
0:00:14.6]} 39... b3 {[%clk 0:00:06.6]} 40. Rxc5 {[%clk 0:00:14.3]} 40... b2
{[%clk 0:00:07]} 41. Rb5 {[%clk 0:00:13.2]} 41... Rd1+ {[%clk 0:00:07.3]} 42.
Kf2 {[%clk 0:00:13.6]} 42... b1=Q {[%clk 0:00:08.2]} 43. Rxb1 {[%clk 0:00:13.1]}
43... Rxb1 {[%clk 0:00:08.8]} 0-1